[Event "Bamberg-Open 2019"]
[Site "Bamberg"]
[Date "2019.05.31"]
[Round "4.21"]
[White "Krauseneck, Peter"]
[Black "Miettinen, Teemu"]
[Result "1/2-1/2"]
[ECO "A01"]
[WhiteElo "2136"]
[BlackElo "2017"]
[Annotator "ChessBase"]
[PlyCount "148"]
[EventDate "2019.05.12"]
[EventType "swiss"]
[EventCountry "GER"]
[SourceTitle "playchess.com"]
[Source "ChessBase"]
[SourceQuality "1"]
[TimeControl "40/5400+30:900+30"]

1. b3 {[%emt 0:01:25]} e5 {[%emt 0:01:07]} 2. Bb2 {[%emt 0:00:02]} Nc6 {[%emt 0:00:06]} 3. c4 {[%emt 0:00:34]} Nf6 {[%emt 0:02:58]} 4. Nc3 {[%emt 0:00:09]} d5 {[%emt 0:07:44]} 5. cxd5 {[%emt 0:00:14]} Nxd5 {[%emt 0:00:12]} 6. g3 {[%emt 0:01:53]} Nxc3 {[%emt 0:04:44]} 7. dxc3 {[%emt 0:00:22]} Qxd1+ {[%emt 0:00:24]} 8. Rxd1 {[%emt 0:00:10]} Bd7 {[%emt 0:02:41]} 9. Bg2 {[%emt 0:01:07]} Bd6 {[%emt 0:02:54]} 10. Nf3 {[%emt 0:02:40]} O-O {[%emt 0:08:55]} 11. O-O {[%emt 0:00:54]} Bg4 {[%emt 0:03:55]} 12. h3 {[%emt 0:00:39]} Bxf3 {[%emt 0:05:30]} 13. Bxf3 {[%emt 0:00:11]} Rae8 {[%emt 0:00:03]} 14. Bxc6 {[%emt 0:01:08]} bxc6 {[%emt 0:00:01]} 15. e4 {[%emt 0:00:20]} f6 {[%emt 0:05:35]} 16. Rd3 {[%emt 0:02:08]} Rb8 {[%emt 0:04:03]} 17. Bc1 {[%emt 0:01:08]} Rb5 {[%emt 0:04:20]} 18. Be3 {[%emt 0:01:14]} Ra5 {[%emt 0:00:58]} 19. Rd2 {[%emt 0:10:37]} c5 {[%emt 0:03:26]} 20. c4 {[%emt 0:01:53]} g6 {[%emt 0:02:22]} 21. g4 {[%emt 0:03:08]} f5 {[%emt 0:10:03]} 22. exf5 {[%emt 0:05:02]} gxf5 {[%emt 0:00:01]} 23. gxf5 {[%emt 0:07:30]} Rxf5 {[%emt 0:00:55]} 24. f3 {[%emt 0:00:08]} Rh5 {[%emt 0:01:34]} 25. Rg2+ {[%emt 0:02:24]} Kf7 {[%emt 0:00:19]} 26. Kh2 {[%emt 0:04:57]} Ra6 {[%emt 0:04:35]} 27. Rd1 {[%emt 0:12:20]} e4+ {[%emt 0:04:52]} 28. f4 {[%emt 0:02:31]} Rf5 {[%emt 0:02:00]} 29. Rf2 {[%emt 0:01:24]} Ke6 {[%emt 0:03:15]} 30. Rg1 {[%emt 0:02:29]} Rb6 {[%emt 0:01:18]} 31. Rg7 {[%emt 0:00:43]} h5 {[%emt 0:00:53]} 32. Rg8 {[%emt 0:02:02]} Be7 {[%emt 0:05:24]} 33. Ra8 {[%emt 0:01:50]} a6 {[%emt 0:03:26]} 34. Rg2 {[%emt 0:01:44]} Rd6 {[%emt 0:01:35]} 35. Rg6+ {[%emt 0:02:26]} Bf6 {[%emt 0:00:01]} 36. Rg2 {[%emt 0:05:19]} Bd4 {[%emt 0:00:22]} 37. Re8+ {[%emt 0:02:23]} Kd7 {[%emt 0:00:45]} 38. Rxe4 {[%emt 0:00:15]} Bxe3 {[%emt 0:00:45]} 39. Rxe3 {[%emt 0:00:03]} Rxf4 {[%emt 0:00:02]} 40. Re5 {[%emt 0:00:20]} h4 {[%emt 0:00:48]} 41. Rxc5 {[%emt 0:17:13]} Rd3 {[%emt 0:17:58]} 42. Rh5 {[%emt 0:00:08]} a5 {[%emt 0:00:35]} 43. Rxa5 {[%emt 0:08:58]} Rff3 {[%emt 0:00:07]} 44. Rd5+ {[%emt 0:00:23]} Rxd5 {[%emt 0:00:04]} 45. cxd5 {[%emt 0:00:09]} Kd6 {[%emt 0:00:21]} 46. Rd2 {[%emt 0:01:57]} Rc3 {[%emt 0:01:38]} 47. b4 {[%emt 0:09:47]} Ra3 {[%emt 0:00:20]} 48. Kg2 {[%emt 0:01:14]} Rg3+ {[%emt 0:01:17]} 49. Kh2 {[%emt 0:00:02]} Ra3 {[%emt 0:00:05]} 50. Rd4 {[%emt 0:00:27]} Rxa2+ {[%emt 0:00:05]} 51. Kg1 {[%emt 0:00:12]} Ke5 {[%emt 0:00:31]} 52. Rxh4 {[%emt 0:00:02]} Kxd5 {[%emt 0:00:16]} 53. Rg4 {[%emt 0:00:09]} Ke5 {[%emt 0:00:49]} 54. Rc4 {[%emt 0:00:29]} Rb2 {[%emt 0:00:52]} 55. h4 {[%emt 0:01:19]} Kd5 {[%emt 0:00:59]} 56. Rg4 {[%emt 0:00:15]} Ke6 {[%emt 0:00:18]} 57. Kf1 {[%emt 0:00:20]} Kf5 {[%emt 0:00:06]} 58. Rc4 {[%emt 0:00:14]} Ke6 {[%emt 0:00:56]} 59. Ke1 {[%emt 0:00:04]} Kd5 {[%emt 0:00:31]} 60. Rg4 {[%emt 0:00:02]} Rh2 {[%emt 0:00:06]} 61. Kd1 {[%emt 0:00:53]} Kc6 {[%emt 0:00:48]} 62. Rc4+ {[%emt 0:01:41]} Kb5 {[%emt 0:00:25]} 63. Re4 {[%emt 0:01:24]} Kc6 {[%emt 0:00:26]} 64. Rd4 {[%emt 0:00:44]} Kb5 {[%emt 0:00:13]} 65. Ke1 {[%emt 0:00:12]} c5 {[%emt 0:00:38]} 66. bxc5 {[%emt 0:00:09]} Kxc5 {[%emt 0:00:01]} 67. Rg4 {[%emt 0:00:09]} Kd5 {[%emt 0:01:09]} 68. Kf1 {[%emt 0:00:02]} Ke6 {[%emt 0:00:17]} 69. Kg1 {[%emt 0:00:09]} Ra2 {[%emt 0:00:09]} 70. Rf4 {[%emt 0:01:36]} Ke5 {[%emt 0:00:52]} 71. Rf3 {[%emt 0:00:21]} Ra4 {[%emt 0:00:33]} 72. Rh3 {[%emt 0:00:04]} Kf6 {[%emt 0:00:07]} 73. Kg2 {[%emt 0:00:29]} Kg6 {[%emt 0:00:30]} 74. Rh1 {[%emt 0:02:01]} Kh5 {[%emt 0:00:12]} 1/2-1/2

[Event "Bamberg-Open 2019"]
[Site "Bamberg"]
[Date "2019.05.31"]
[Round "4.22"]
[White "Legahn, Dirk"]
[Black "Spitzl, Philipp"]
[Result "1-0"]
[ECO "D00"]
[WhiteElo "2132"]
[BlackElo "2013"]
[Annotator "ChessBase"]
[PlyCount "81"]
[EventDate "2019.05.12"]
[EventType "swiss"]
[EventCountry "GER"]
[SourceTitle "playchess.com"]
[Source "ChessBase"]
[SourceQuality "1"]
[TimeControl "40/5400+30:900+30"]

1. d4 {[%emt 0:00:00]} d5 {[%emt 0:00:00]} 2. Bf4 {[%emt 0:00:00]} e6 {[%emt 0:00:08]} 3. e3 {[%emt 0:00:00]} Nf6 {[%emt 0:01:21]} 4. Nd2 {[%emt 0:00:16]} b6 {[%emt 0:01:59]} 5. c3 {[%emt 0:00:49]} Bd6 {[%emt 0:02:05]} 6. Bg3 {[%emt 0:02:07]} O-O {[%emt 0:03:21]} 7. Ngf3 {[%emt 0:00:43]} c5 {[%emt 0:13:36]} 8. Ne5 {[%emt 0:07:03]} Qc7 {[%emt 0:03:56]} 9. f4 {[%emt 0:03:29]} Ne4 {[%emt 0:09:31]} 10. Nxe4 {[%emt 0:01:50]} dxe4 {[%emt 0:00:05]} 11. a3 {[%emt 0:03:20]} Ba6 {[%emt 0:14:00]} 12. Bxa6 {[%emt 0:07:56]} Nxa6 {[%emt 0:00:03]} 13. O-O {[%emt 0:00:30]} f5 {[%emt 0:08:27]} 14. Qb3 {[%emt 0:13:52]} Rfe8 {[%emt 0:00:26]} 15. d5 {[%emt 0:02:15]} Rac8 {[%emt 0:06:42]} 16. dxe6 {[%emt 0:06:06]} c4 {[%emt 0:00:45]} 17. Qb5 {[%emt 0:00:51]} Nb8 {[%emt 0:04:43]} 18. Qd5 {[%emt 0:06:54]} Qc5 {[%emt 0:00:53]} 19. Rad1 {[%emt 0:03:32]} Qxd5 {[%emt 0:04:01]} 20. Rxd5 {[%emt 0:00:05]} Rxe6 {[%emt 0:00:07]} 21. Rfd1 {[%emt 0:04:37]} Bxe5 {[%emt 0:03:14]} 22. fxe5 {[%emt 0:01:04]} Rce8 {[%emt 0:03:28]} 23. R1d4 {[%emt 0:01:09]} Nc6 {[%emt 0:03:41]} 24. Rxc4 {[%emt 0:00:18]} Nxe5 {[%emt 0:00:17]} 25. Rc7 {[%emt 0:01:52]} Ng4 {[%emt 0:08:35]} 26. Rdd7 {[%emt 0:02:13]} Rg6 {[%emt 0:00:54]} 27. Bf4 {[%emt 0:03:48]} a6 {[%emt 0:01:36]} 28. h3 {[%emt 0:01:16]} Nf6 {[%emt 0:00:53]} 29. Rd6 {[%emt 0:01:11]} Nh5 {[%emt 0:01:42]} 30. Rxg6 {[%emt 0:01:38]} hxg6 {[%emt 0:00:05]} 31. Bg5 {[%emt 0:03:31]} Re6 {[%emt 0:00:39]} 32. c4 {[%emt 0:02:58]} Nf6 {[%emt 0:00:30]} 33. b4 {[%emt 0:00:50]} Rd6 {[%emt 0:01:17]} 34. Ra7 {[%emt 0:01:07]} b5 {[%emt 0:00:12]} 35. c5 {[%emt 0:01:16]} Rc6 {[%emt 0:00:06]} 36. Bxf6 {[%emt 0:00:13]} Rxf6 {[%emt 0:00:45]} 37. h4 {[%emt 0:04:58]} f4 {[%emt 0:02:43]} 38. exf4 {[%emt 0:06:55]} Rxf4 {[%emt 0:00:04]} 39. c6 {[%emt 0:00:59]} e3 {[%emt 0:00:33]} 40. c7 {[%emt 0:03:14]} e2 {[%emt 0:00:09]} 41. c8=Q+ {[%emt 0:15:14]} 1-0

[Event "Bamberg-Open 2019"]
[Site "Bamberg"]
[Date "2019.05.31"]
[Round "4.23"]
[White "Rempeli, Alex"]
[Black "Grosshans, Ralf-Michael"]
[Result "1-0"]
[ECO "A53"]
[WhiteElo "2016"]
[BlackElo "2128"]
[Annotator "ChessBase"]
[PlyCount "117"]
[EventDate "2019.05.12"]
[EventType "swiss"]
[EventCountry "GER"]
[SourceTitle "playchess.com"]
[Source "ChessBase"]
[SourceQuality "1"]
[TimeControl "40/5400+30:900+30"]

1. d4 {[%emt 0:00:00]} Nf6 {[%emt 0:00:00]} 2. c4 {[%emt 0:00:00]} d6 {[%emt 0:00:09]} 3. Nc3 {[%emt 0:00:00]} Nbd7 {[%emt 0:00:02]} 4. e4 {[%emt 0:00:26]} e5 {[%emt 0:00:03]} 5. Nf3 {[%emt 0:00:23]} c6 {[%emt 0:00:03]} 6. Be2 {[%emt 0:00:28]} Qc7 {[%emt 0:00:05]} 7. O-O {[%emt 0:00:29]} Be7 {[%emt 0:00:03]} 8. Be3 {[%emt 0:00:34]} O-O {[%emt 0:00:28]} 9. d5 {[%emt 0:00:22]} Nc5 {[%emt 0:04:23]} 10. Qc2 {[%emt 0:02:18]} a5 {[%emt 0:00:59]} 11. Nd2 {[%emt 0:09:32]} h6 {[%emt 0:05:50]} 12. b3 {[%emt 0:06:00]} Nh7 {[%emt 0:04:04]} 13. g3 {[%emt 0:07:18]} Bh3 {[%emt 0:05:22]} 14. Rfe1 {[%emt 0:00:30]} f5 {[%emt 0:01:07]} 15. Bxc5 {[%emt 0:01:28]} dxc5 {[%emt 0:00:24]} 16. exf5 {[%emt 0:00:51]} Bxf5 {[%emt 0:01:26]} 17. Bd3 {[%emt 0:02:21]} Bxd3 {[%emt 0:00:31]} 18. Qxd3 {[%emt 0:00:12]} Ng5 {[%emt 0:00:03]} 19. Nce4 {[%emt 0:05:18]} Nf7 {[%emt 0:02:45]} 20. Nf1 {[%emt 0:09:11]} Rad8 {[%emt 0:03:29]} 21. Rad1 {[%emt 0:00:51]} Ng5 {[%emt 0:16:08]} 22. Nxg5 {[%emt 0:06:27]} Bxg5 {[%emt 0:00:17]} 23. Qe4 {[%emt 0:03:51]} Qf7 {[%emt 0:02:16]} 24. Re2 {[%emt 0:00:51]} cxd5 {[%emt 0:10:00]} 25. Rxd5 {[%emt 0:06:37]} Rxd5 {[%emt 0:00:34]} 26. cxd5 {[%emt 0:03:06]} Rd8 {[%emt 0:00:34]} 27. h4 {[%emt 0:00:46]} Bf6 {[%emt 0:13:51]} 28. Ne3 {[%emt 0:00:21]} b5 {[%emt 0:00:09]} 29. Rc2 {[%emt 0:01:47]} Qc7 {[%emt 0:01:55]} 30. a4 {[%emt 0:08:35]} Qb6 {[%emt 0:00:22]} 31. axb5 {[%emt 0:02:30]} Qxb5 {[%emt 0:01:10]} 32. Qc4 {[%emt 0:03:05]} Qb6 {[%emt 0:00:30]} 33. Qxc5 {[%emt 0:03:16]} Qxb3 {[%emt 0:00:10]} 34. Qxa5 {[%emt 0:00:34]} Qb1+ {[%emt 0:04:17]} 35. Kg2 {[%emt 0:00:21]} Qb7 {[%emt 0:00:11]} 36. Qc5 {[%emt 0:03:13]} Qa6 {[%emt 0:02:20]} 37. Rc4 {[%emt 0:05:25]} h5 {[%emt 0:03:14]} 38. Qc6 {[%emt 0:01:07]} Qa3 {[%emt 0:02:16]} 39. Qe6+ {[%emt 0:00:41]} Kh8 {[%emt 0:01:30]} 40. Qf5 {[%emt 0:01:17]} Qb3 {[%emt 0:00:45]} 41. Qxh5+ {[%emt 0:15:27]} Kg8 {[%emt 0:15:01]} 42. Qf5 {[%emt 0:00:59]} Qb7 {[%emt 0:00:12]} 43. h5 {[%emt 0:02:30]} Rf8 {[%emt 0:02:12]} 44. h6 {[%emt 0:03:02]} gxh6 {[%emt 0:01:12]} 45. Rc6 {[%emt 0:00:00]} Bg7 {[%emt 0:00:00]} 46. Qe6+ {[%emt 0:00:00]} Kh8 {[%emt 0:00:00]} 47. Rc2 {[%emt 0:00:00]} Rd8 {[%emt 0:00:00]} 48. Kh2 {[%emt 0:00:00]} Qd7 {[%emt 0:01:08]} 49. Qg6 {[%emt 0:00:00]} Bf8 {[%emt 0:05:19]} 50. Nf5 {[%emt 0:01:50]} Bg7 {[%emt 0:04:00]} 51. d6 {[%emt 0:01:16]} Qa7 {[%emt 0:00:58]} 52. Kg2 {[%emt 0:02:17]} Qb7+ {[%emt 0:00:41]} 53. f3 {[%emt 0:00:38]} e4 {[%emt 0:00:13]} 54. Rc7 {[%emt 0:00:58]} Qb2+ {[%emt 0:00:12]} 55. Kh3 {[%emt 0:00:09]} Rg8 {[%emt 0:03:47]} 56. Rxg7 {[%emt 0:00:10]} Rxg7 {[%emt 0:00:22]} 57. Qxg7+ {[%emt 0:00:10]} Qxg7 {[%emt 0:00:02]} 58. Nxg7 {[%emt 0:00:07]} e3 {[%emt 0:00:19]} 59. Kg2 {[%emt 0:00:07]} 1-0

[Event "Bamberg-Open 2019"]
[Site "Bamberg"]
[Date "2019.05.31"]
[Round "4.24"]
[White "Syed, Tareq"]
[Black "Schnicke, Robert"]
[Result "1-0"]
[ECO "A21"]
[WhiteElo "2001"]
[BlackElo "2127"]
[Annotator "ChessBase"]
[PlyCount "88"]
[EventDate "2019.05.12"]
[EventType "swiss"]
[EventCountry "GER"]
[SourceTitle "playchess.com"]
[Source "ChessBase"]
[SourceQuality "1"]
[TimeControl "40/5400+30:900+30"]

1. d3 {[%emt 0:08:16]} e5 {[%emt 0:02:06]} 2. g3 {[%emt 0:00:03]} g6 {[%emt 0:01:50]} 3. Bg2 {[%emt 0:00:08]} Bg7 {[%emt 0:00:10]} 4. c4 {[%emt 0:00:09]} Ne7 {[%emt 0:01:02]} 5. Nc3 {[%emt 0:00:03]} d6 {[%emt 0:00:53]} 6. Rb1 {[%emt 0:00:20]} c6 {[%emt 0:04:01]} 7. Bd2 {[%emt 0:07:32]} Be6 {[%emt 0:02:07]} 8. Qc1 {[%emt 0:04:19]} f5 {[%emt 0:10:46]} 9. Bh6 {[%emt 0:07:11]} O-O {[%emt 0:00:47]} 10. h4 {[%emt 0:00:50]} f4 {[%emt 0:03:09]} 11. Bxg7 {[%emt 0:01:23]} Kxg7 {[%emt 0:00:07]} 12. h5 {[%emt 0:12:08]} g5 {[%emt 0:00:28]} 13. h6+ {[%emt 0:09:20]} Kh8 {[%emt 0:00:22]} 14. Ne4 {[%emt 0:00:59]} g4 {[%emt 0:07:59]} 15. Qc3 {[%emt 0:01:34]} Ng6 {[%emt 0:05:30]} 16. Qb4 {[%emt 0:00:52]} Qe7 {[%emt 0:07:51]} 17. Qxd6 {[%emt 0:01:06]} Nd7 {[%emt 0:01:01]} 18. Qxe7 {[%emt 0:02:10]} Nxe7 {[%emt 0:00:08]} 19. Ng5 {[%emt 0:03:19]} Bf5 {[%emt 0:00:56]} 20. Be4 {[%emt 0:01:00]} Nf6 {[%emt 0:02:06]} 21. Bxf5 {[%emt 0:01:09]} Nxf5 {[%emt 0:00:08]} 22. gxf4 {[%emt 0:00:45]} exf4 {[%emt 0:00:12]} 23. Ne6 {[%emt 0:00:32]} Rg8 {[%emt 0:04:57]} 24. Nxf4 {[%emt 0:01:05]} Rae8 {[%emt 0:00:58]} 25. Kd2 {[%emt 0:02:49]} g3 {[%emt 0:00:26]} 26. fxg3 {[%emt 0:02:58]} Nxg3 {[%emt 0:01:33]} 27. Rh3 {[%emt 0:01:24]} Rg4 {[%emt 0:02:13]} 28. e3 {[%emt 0:03:27]} Nf5 {[%emt 0:04:32]} 29. Nge2 {[%emt 0:00:37]} Ng8 {[%emt 0:00:34]} 30. Rbh1 {[%emt 0:01:36]} Nfxh6 {[%emt 0:00:42]} 31. Rxh6 {[%emt 0:01:54]} Nxh6 {[%emt 0:00:10]} 32. Rxh6 {[%emt 0:00:06]} Kg7 {[%emt 0:01:05]} 33. Rd6 {[%emt 0:00:52]} Re7 {[%emt 0:01:30]} 34. Nd4 {[%emt 0:01:30]} Kh8 {[%emt 0:02:53]} 35. Nf5 {[%emt 0:02:34]} Re8 {[%emt 0:01:33]} 36. Rd7 {[%emt 0:05:11]} Rf8 {[%emt 0:00:11]} 37. Nd6 {[%emt 0:01:03]} Rf6 {[%emt 0:03:06]} 38. Nxb7 {[%emt 0:07:44]} Rh6 {[%emt 0:00:11]} 39. Nd6 {[%emt 0:01:30]} Rh2+ {[%emt 0:00:18]} 40. Kc3 {[%emt 0:00:19]} Kg8 {[%emt 0:04:29]} 41. Rxa7 {[%emt 0:17:30]} h5 {[%emt 0:15:12]} 42. Ne4 {[%emt 0:01:48]} Rxf4 {[%emt 0:01:06]} 43. exf4 {[%emt 0:00:22]} h4 {[%emt 0:00:05]} 44. Nf6+ {[%emt 0:01:03]} Kf8 {[%emt 0:00:02]} 1-0

[Event "Bamberg-Open 2019"]
[Site "Bamberg"]
[Date "2019.05.31"]
[Round "4.25"]
[White "Hoekstra, Peter"]
[Black "Schliebener, Stephan"]
[Result "1-0"]
[ECO "B06"]
[WhiteElo "1979"]
[BlackElo "2117"]
[Annotator "ChessBase"]
[PlyCount "51"]
[EventDate "2019.05.12"]
[EventType "swiss"]
[EventCountry "GER"]
[SourceTitle "playchess.com"]
[Source "ChessBase"]
[SourceQuality "1"]
[TimeControl "40/5400+30:900+30"]

1. e4 {[%emt 0:12:24]} d6 {[%emt 0:00:00]} 2. d4 {[%emt 0:00:08]} g6 {[%emt 0:00:00]} 3. Nc3 {[%emt 0:00:10]} Bg7 {[%emt 0:00:00]} 4. Be3 {[%emt 0:00:20]} a6 {[%emt 0:00:00]} 5. f4 {[%emt 0:00:27]} Nd7 {[%emt 0:02:39]} 6. Nf3 {[%emt 0:00:07]} b5 {[%emt 0:00:49]} 7. Bd3 {[%emt 0:00:12]} Bb7 {[%emt 0:00:38]} 8. e5 {[%emt 0:00:35]} e6 {[%emt 0:00:38]} 9. O-O {[%emt 0:03:43]} Ne7 {[%emt 0:04:33]} 10. Qe1 {[%emt 0:11:10]} Nf5 {[%emt 0:04:56]} 11. Rd1 {[%emt 0:07:46]} Nxe3 {[%emt 0:12:47]} 12. Qxe3 {[%emt 0:01:20]} b4 {[%emt 0:01:25]} 13. Ne2 {[%emt 0:07:10]} Qe7 {[%emt 0:01:00]} 14. Ng3 {[%emt 0:02:21]} h5 {[%emt 0:04:42]} 15. Ng5 {[%emt 0:00:36]} d5 {[%emt 0:00:45]} 16. h4 {[%emt 0:18:58]} c5 {[%emt 0:06:07]} 17. c3 {[%emt 0:00:08]} c4 {[%emt 0:01:09]} 18. Bc2 {[%emt 0:01:01]} O-O {[%emt 0:00:43]} 19. Qe2 {[%emt 0:05:40]} bxc3 {[%emt 0:07:18]} 20. bxc3 {[%emt 0:03:57]} Bh6 {[%emt 0:17:34]} 21. Nxh5 {[%emt 0:00:50]} gxh5 {[%emt 0:01:33]} 22. Qxh5 {[%emt 0:00:20]} Kg7 {[%emt 0:00:07]} 23. f5 {[%emt 0:01:34]} exf5 {[%emt 0:00:05]} 24. Bxf5 {[%emt 0:05:46]} Rh8 {[%emt 0:07:05]} 25. Ne6+ {[%emt 0:02:33]} Qxe6 {[%emt 0:00:07]} 26. Qg4+ {[%emt 0:00:29]} 1-0

[Event "Bamberg-Open 2019"]
[Site "Bamberg"]
[Date "2019.05.31"]
[Round "4.26"]
[White "Ziegenfuss, Antonia"]
[Black "Dehmel, Jens"]
[Result "1-0"]
[ECO "D10"]
[WhiteElo "2111"]
[BlackElo "2006"]
[Annotator "ChessBase"]
[PlyCount "81"]
[EventDate "2019.05.12"]
[EventType "swiss"]
[EventCountry "GER"]
[SourceTitle "playchess.com"]
[Source "ChessBase"]
[SourceQuality "1"]
[TimeControl "40/5400+30:900+30"]

1. d4 {[%emt 0:00:00]} d5 {[%emt 0:00:29]} 2. c4 {[%emt 0:00:00]} c6 {[%emt 0:00:06]} 3. Nc3 {[%emt 0:00:00]} Nf6 {[%emt 0:00:42]} 4. cxd5 {[%emt 0:00:00]} cxd5 {[%emt 0:00:05]} 5. f3 {[%emt 0:00:00]} Nc6 {[%emt 0:00:17]} 6. e4 {[%emt 0:00:05]} e6 {[%emt 0:00:06]} 7. e5 {[%emt 0:00:07]} Ng8 {[%emt 0:00:05]} 8. Be3 {[%emt 0:00:21]} Nge7 {[%emt 0:00:30]} 9. Bf2 {[%emt 0:00:10]} Nf5 {[%emt 0:00:42]} 10. Bb5 {[%emt 0:03:36]} Bd7 {[%emt 0:02:02]} 11. Nge2 {[%emt 0:01:30]} Be7 {[%emt 0:00:20]} 12. O-O {[%emt 0:13:28]} Nb4 {[%emt 0:00:59]} 13. Bxd7+ {[%emt 0:02:41]} Qxd7 {[%emt 0:00:07]} 14. a3 {[%emt 0:04:49]} Nc6 {[%emt 0:00:07]} 15. b4 {[%emt 0:07:44]} O-O {[%emt 0:00:13]} 16. Rc1 {[%emt 0:06:30]} a5 {[%emt 0:01:45]} 17. Na4 {[%emt 0:09:56]} Qd8 {[%emt 0:06:04]} 18. b5 {[%emt 0:03:18]} Na7 {[%emt 0:04:45]} 19. Qb3 {[%emt 0:01:11]} Rc8 {[%emt 0:12:58]} 20. Rxc8 {[%emt 0:06:00]} Nxc8 {[%emt 0:04:23]} 21. b6 {[%emt 0:03:18]} f6 {[%emt 0:02:28]} 22. Rc1 {[%emt 0:02:58]} Rf7 {[%emt 0:02:01]} 23. Nf4 {[%emt 0:08:27]} Qe8 {[%emt 0:06:08]} 24. Nxe6 {[%emt 0:05:46]} Bxa3 {[%emt 0:00:43]} 25. Nc7 {[%emt 0:02:01]} Qf8 {[%emt 0:03:15]} 26. Ra1 {[%emt 0:01:25]} Bb4 {[%emt 0:00:40]} 27. e6 {[%emt 0:01:20]} Rxc7 {[%emt 0:02:00]} 28. bxc7 {[%emt 0:00:07]} Qd6 {[%emt 0:00:21]} 29. Nc3 {[%emt 0:05:39]} Nfe7 {[%emt 0:02:21]} 30. Na2 {[%emt 0:02:27]} Bd2 {[%emt 0:00:55]} 31. Qxb7 {[%emt 0:02:12]} Qxe6 {[%emt 0:00:46]} 32. Nc1 {[%emt 0:02:20]} Bc3 {[%emt 0:01:39]} 33. Rb1 {[%emt 0:00:40]} Bxd4 {[%emt 0:00:33]} 34. Nd3 {[%emt 0:01:18]} Bc3 {[%emt 0:00:40]} 35. Qb3 {[%emt 0:01:53]} Bd2 {[%emt 0:00:34]} 36. Rd1 {[%emt 0:00:34]} Bh6 {[%emt 0:02:07]} 37. Re1 {[%emt 0:01:42]} Qd7 {[%emt 0:00:39]} 38. Qb8 {[%emt 0:00:53]} Kf7 {[%emt 0:00:29]} 39. Nc5 {[%emt 0:01:08]} Qc6 {[%emt 0:00:54]} 40. Nb7 {[%emt 0:00:53]} Bd2 {[%emt 0:06:04]} 41. Nd8+ {[%emt 0:16:04]} 1-0

[Event "Bamberg-Open 2019"]
[Site "Bamberg"]
[Date "2019.06.01"]
[Round "5.2"]
[White "Plat, Vojtech"]
[Black "Kurayan, Ruslan"]
[Result "1/2-1/2"]
[ECO "E62"]
[WhiteElo "2540"]
[BlackElo "2374"]
[Annotator "ChessBase"]
[PlyCount "115"]
[EventDate "2019.05.12"]
[EventType "swiss"]
[EventCountry "GER"]
[SourceTitle "playchess.com"]
[Source "ChessBase"]
[SourceQuality "1"]
[TimeControl "40/5400+30:900+30"]

1. d4 {[%emt 0:01:58]} Nf6 {[%emt 0:00:00]} 2. c4 {[%emt 0:00:06]} g6 {[%emt 0:00:00]} 3. g3 {[%emt 0:00:04]} Bg7 {[%emt 0:00:00]} 4. Bg2 {[%emt 0:00:04]} O-O {[%emt 0:00:01]} 5. Nc3 {[%emt 0:00:04]} d6 {[%emt 0:00:06]} 6. Nf3 {[%emt 0:00:08]} Nc6 {[%emt 0:00:09]} 7. O-O {[%emt 0:00:18]} Bf5 {[%emt 0:00:05]} 8. Re1 {[%emt 0:01:51]} Ne4 {[%emt 0:01:49]} 9. Nd5 {[%emt 0:00:25]} Bd7 {[%emt 0:01:50]} 10. Ng5 {[%emt 0:05:12]} Nxg5 {[%emt 0:09:20]} 11. Bxg5 {[%emt 0:00:05]} Re8 {[%emt 0:00:29]} 12. Be3 {[%emt 0:00:18]} e6 {[%emt 0:17:23]} 13. Nc3 {[%emt 0:00:13]} e5 {[%emt 0:00:05]} 14. dxe5 {[%emt 0:01:17]} Nxe5 {[%emt 0:06:19]} 15. Bd4 {[%emt 0:01:55]} c5 {[%emt 0:10:00]} 16. Bxe5 {[%emt 0:00:04]} Bxe5 {[%emt 0:00:05]} 17. Qd2 {[%emt 0:01:32]} Bc6 {[%emt 0:14:59]} 18. Bxc6 {[%emt 0:02:13]} bxc6 {[%emt 0:00:22]} 19. Rac1 {[%emt 0:00:06]} Qa5 {[%emt 0:01:32]} 20. b3 {[%emt 0:01:26]} Bxc3 {[%emt 0:08:51]} 21. Rxc3 {[%emt 0:02:30]} d5 {[%emt 0:06:25]} 22. cxd5 {[%emt 0:00:21]} cxd5 {[%emt 0:00:31]} 23. Rec1 {[%emt 0:03:25]} d4 {[%emt 0:02:57]} 24. R3c2 {[%emt 0:01:32]} Qxd2 {[%emt 0:00:45]} 25. Rxd2 {[%emt 0:00:04]} Re5 {[%emt 0:00:10]} 26. Rc4 {[%emt 0:00:06]} Rb8 {[%emt 0:02:16]} 27. f4 {[%emt 0:04:40]} Rf5 {[%emt 0:01:18]} 28. Ra4 {[%emt 0:00:24]} Rb7 {[%emt 0:00:09]} 29. Ra5 {[%emt 0:00:05]} h5 {[%emt 0:02:01]} 30. Kf2 {[%emt 0:01:46]} Kg7 {[%emt 0:04:26]} 31. Kf3 {[%emt 0:01:47]} Re7 {[%emt 0:03:38]} 32. Rc2 {[%emt 0:02:07]} c4 {[%emt 0:02:13]} 33. Rxf5 {[%emt 0:00:13]} cxb3 {[%emt 0:00:02]} 34. Rxf7+ {[%emt 0:00:35]} Kxf7 {[%emt 0:00:07]} 35. axb3 {[%emt 0:00:04]} Re3+ {[%emt 0:00:08]} 36. Kf2 {[%emt 0:00:05]} Rxb3 {[%emt 0:00:04]} 37. Rc7+ {[%emt 0:00:44]} Ke6 {[%emt 0:00:24]} 38. Rc6+ {[%emt 0:00:50]} Kf5 {[%emt 0:01:32]} 39. Rd6 {[%emt 0:03:52]} Rb4 {[%emt 0:00:49]} 40. h4 {[%emt 0:00:32]} Ra4 {[%emt 0:00:51]} 41. Rd5+ {[%emt 0:16:28]} Kf6 {[%emt 0:15:44]} 42. Rg5 {[%emt 0:01:00]} Ra2 {[%emt 0:00:55]} 43. Rd5 {[%emt 0:02:17]} Ra4 {[%emt 0:00:08]} 44. g4 {[%emt 0:01:37]} hxg4 {[%emt 0:00:37]} 45. Kg3 {[%emt 0:00:03]} Ra3+ {[%emt 0:01:06]} 46. Kxg4 {[%emt 0:00:08]} Re3 {[%emt 0:00:06]} 47. Rxd4 {[%emt 0:00:07]} Rxe2 {[%emt 0:00:05]} 48. Ra4 {[%emt 0:00:03]} Rg2+ {[%emt 0:00:52]} 49. Kf3 {[%emt 0:00:12]} Rh2 {[%emt 0:00:06]} 50. Kg3 {[%emt 0:00:02]} Rh1 {[%emt 0:00:05]} 51. Rxa7 {[%emt 0:00:41]} Rg1+ {[%emt 0:00:07]} 52. Kf3 {[%emt 0:00:03]} Rf1+ {[%emt 0:00:58]} 53. Ke3 {[%emt 0:00:06]} Rh1 {[%emt 0:00:45]} 54. Rh7 {[%emt 0:00:06]} Kf5 {[%emt 0:00:09]} 55. Rf7+ {[%emt 0:01:17]} Ke6 {[%emt 0:00:06]} 56. Rh7 {[%emt 0:00:06]} Kf5 {[%emt 0:00:04]} 57. Rf7+ {[%emt 0:00:02]} Ke6 {[%emt 0:00:03]} 58. Rh7 {[%emt 0:00:02]} 1/2-1/2